[Event "2nd Namma Bengaluru Open-A 2025"]
[Site "Bengaluru"]
[Date "2025.04.11"]
[Round "2.13"]
[White "Vaz, Ethan"]
[Black "Aarit Kapil"]
[Result "1-0"]
[Annotator "RC"]
[ECO "B33"]
[WhiteElo "2430"]
[BlackElo "2123"]
[PlyCount "149"]
[EventDate "2025.04.10"]
[EventType "swiss"]
[EventCountry "IND"]
[SourceTitle "playchess.com"]
[Source "ChessBase"]
[SourceQuality "1"]
[TimeControl "5400+30"]

1. e4 {[%emt 0:01:25]} c5 {[%emt 0:00:07]} 2. Nf3 {[%emt 0:00:28]} Nc6 {[%emt 0:00:26]} 3. d4 {[%emt 0:02:24]} cxd4 {[%emt 0:00:09]} 4. Nxd4 {[%emt 0:00:03]} Nf6 {[%emt 0:00:16]} 5. Nc3 {[%emt 0:00:01]} e5 {[%emt 0:00:08]} 6. Ndb5 {[%emt 0:00:19]} d6 {[%emt 0:00:15]} 7. Nd5 {[%emt 0:01:25]} Nxd5 {[%emt 0:00:32]} 8. exd5 {[%emt 0:00:02]} Nb8 {[%emt 0:00:16]} 9. a4 {[%emt 0:00:15]} Be7 {[%emt 0:00:21]} 10. Be2 {[%emt 0:01:03]} O-O {[%emt 0:00:22]} 11. O-O {[%emt 0:00:39]} f5 {[%emt 0:00:21]} 12. f4 {[%emt 0:11:16]} a6 {[%emt 0:00:50]} 13. Na3 {[%emt 0:01:28]} e4 {[%emt 0:00:11]} 14. Nc4 {[%emt 0:07:50]} Nd7 {[%emt 0:01:04]} 15. a5 {[%emt 0:07:04]} b5 {[%emt 0:00:50]} 16. axb6 {[%emt 0:01:45]} Nxb6 {[%emt 0:00:08]} 17. Na5 {[%emt 0:02:32]} Bd7 {[%emt 0:02:15]} 18. Be3 {[%emt 0:05:17]} Qc7 {[%emt 0:00:17]} 19. c4 {[%emt 0:04:09]} Bf6 {[%emt 0:03:28]} 20. Ra2 {[%emt 0:08:26]} Rfb8 {[%emt 0:02:18]} 21. b4 {[%emt 0:02:52]} Nc8 {[%emt 0:06:17]} 22. Qd2 {[%emt 0:03:35]} Ne7 {[%emt 0:03:08]} 23. Rc1 {[%emt 0:04:48]} Rd8 {[%emt 0:03:16]} 24. c5 {[%emt 0:05:13]} Be8 {[%emt 0:00:14]} 25. cxd6 {[%emt 0:03:05]} Qxd6 {[%emt 0:00:37]} 26. Nb7 {[%emt 0:01:53]} Qxd5 {[%emt 0:00:29]} 27. Nxd8 {[%emt 0:02:13]} Qxd8 {[%emt 0:00:08]} 28. Bc4+ {[%emt 0:08:14]} Bf7 {[%emt 0:00:14]} 29. Rxa6 {[%emt 0:03:14]} Bxc4 {[%emt 0:00:21]} 30. Rxc4 {[%emt 0:01:06]} Nd5 {[%emt 0:00:29]} 31. Rxa8 {[%emt 0:00:26]} Qxa8 {[%emt 0:00:02]} 32. Bf2 {[%emt 0:03:11]} h6 {[%emt 0:04:37]} 33. Rc5 {[%emt 0:02:04]} Qa1+ {[%emt 0:01:20]} 34. Rc1 {[%emt 0:00:55]} Qa8 {[%emt 0:00:41]} 35. b5 {[%emt 0:01:53]} g5 {[%emt 0:00:12]} 36. Bd4 {[%emt 0:00:52]} Bd8 {[%emt 0:02:05]} 37. Qc2 {[%emt 0:01:40]} Nxf4 {[%emt 1:10:16]} 38. Qc4+ {[%emt 0:00:27]} Kf8 {[%emt 0:00:00]} 39. Qc8 {[%emt 0:01:02]} Qd5 {[%emt 0:00:00]} 40. Qc5+ {[%emt 0:00:13]} Qxc5 {[%emt 0:00:00]} 41. Bxc5+ {[%emt 0:00:07]} Ke8 {[%emt 0:00:00]} 42. Rc4 {[%emt 0:02:46]} Nd5 {[%emt 0:00:00]} 43. g4 {[%emt 0:01:06]} fxg4 {[%emt 0:00:00]} 44. Rxe4+ {[%emt 0:00:01]} Kd7 {[%emt 0:00:00]} 45. Rxg4 {[%emt 0:00:33]} Nf4 {[%emt 0:00:00]} 46. Kf1 {[%emt 0:00:27]} Bc7 {[%emt 0:00:00]} 47. Rg3 {[%emt 0:00:52]} Ne6 {[%emt 0:00:00]} 48. Rd3+ {[%emt 0:00:04]} Kc8 {[%emt 0:00:00]} 49. Bg1 {[%emt 0:00:47]} h5 {[%emt 0:00:00]} 50. Re3 {[%emt 0:00:21]} Kd7 {[%emt 0:00:00]} 51. b6 {[%emt 0:00:37]} Bf4 {[%emt 0:00:00]} 52. Rc3 {[%emt 0:01:07]} g4 {[%emt 0:00:00]} 53. b7 {[%emt 0:00:19]} Nd8 {[%emt 0:00:00]} 54. Rd3+ {[%emt 0:00:10]} Ke8 {[%emt 0:00:00]} 55. Rb3 {[%emt 0:00:16]} Nc6 {[%emt 0:00:00]} 56. Ba7 {[%emt 0:00:13]} Nb8 {[%emt 0:00:00]} 57. Bxb8 {[%emt 0:00:42]} Bxb8 {[%emt 0:00:00]} 58. Rc3 {[%emt 0:00:20]} Kd7 {[%emt 0:00:00]} 59. Rc8 {[%emt 0:00:13]} Bxh2 {[%emt 0:00:00]} 60. Kg2 {[%emt 0:00:43]} Bd6 {[%emt 0:00:00]} 61. b8=Q {[%emt 0:00:11]} Bxb8 {[%emt 0:00:00]} 62. Rxb8 {[%emt 0:00:01]} Ke6 {[%emt 0:00:00]} 63. Rh8 {[%emt 0:00:03]} Kf5 {[%emt 0:00:00]} 64. Rxh5+ {[%emt 0:00:03]} Kf4 {[%emt 0:00:00]} 65. Rh4 {[%emt 0:00:02]} Ke3 {[%emt 0:14:00]} 66. Rxg4 {[%emt 0:00:03]} Kd3 {[%emt 0:00:00]} 67. Kf2 {[%emt 0:00:03]} Kd2 {[%emt 0:00:00]} 68. Rd4+ {[%emt 0:00:03]} Kc3 {[%emt 0:00:00]} 69. Ke3 {[%emt 0:00:03]} Kb3 {[%emt 0:00:00]} 70. Kd2 {[%emt 0:00:03]} Kb2 {[%emt 0:00:00]} 71. Rb4+ {[%emt 0:00:05]} Ka3 {[%emt 0:00:00]} 72. Kc3 {[%emt 0:00:01]} Ka2 {[%emt 0:00:00]} 73. Kc2 {[%emt 0:00:10]} Ka3 {[%emt 0:00:00]} 74. Rh4 {[%emt 0:00:02]} Ka2 {[%emt 0:00:00]} 75. Ra4# {[%emt 0:00:02]} 1-0

[Event "2nd Namma Bengaluru Open-A 2025"]
[Site "Bengaluru"]
[Date "2025.04.11"]
[Round "2.14"]
[White "Koustuv Dash"]
[Black "Mehar, Chinna Reddy C.H."]
[Result "0-1"]
[Annotator "RC"]
[ECO "E52"]
[WhiteElo "2131"]
[BlackElo "2418"]
[PlyCount "128"]
[EventDate "2025.04.10"]
[EventType "swiss"]
[EventCountry "IND"]
[SourceTitle "playchess.com"]
[Source "ChessBase"]
[SourceQuality "1"]
[TimeControl "5400+30"]

1. d4 {[%emt 0:04:04]} Nf6 {[%emt 0:02:53]} 2. c4 {[%emt 0:00:32]} e6 {[%emt 0:00:31]} 3. Nc3 {[%emt 0:00:43]} Bb4 {[%emt 0:00:25]} 4. e3 {[%emt 0:00:35]} O-O {[%emt 0:00:44]} 5. Bd2 {[%emt 0:10:21]} d5 {[%emt 0:02:29]} 6. Nf3 {[%emt 0:00:58]} b6 {[%emt 0:00:28]} 7. Rc1 {[%emt 0:01:22]} a6 {[%emt 0:01:46]} 8. Bd3 {[%emt 0:01:08]} Bb7 {[%emt 0:00:11]} 9. O-O {[%emt 0:00:44]} Bd6 {[%emt 0:05:37]} 10. cxd5 {[%emt 0:16:56]} exd5 {[%emt 0:00:15]} 11. Ne5 {[%emt 0:01:08]} c5 {[%emt 0:02:12]} 12. Be1 {[%emt 0:03:13]} Nc6 {[%emt 0:04:37]} 13. f4 {[%emt 0:10:46]} cxd4 {[%emt 0:02:47]} 14. Nxc6 {[%emt 0:00:32]} Bxc6 {[%emt 0:00:06]} 15. exd4 {[%emt 0:00:04]} Bb7 {[%emt 0:00:46]} 16. Bh4 {[%emt 0:00:30]} Be7 {[%emt 0:02:49]} 17. Re1 {[%emt 0:04:00]} Re8 {[%emt 0:02:27]} 18. Rc2 {[%emt 0:08:43]} Ne4 {[%emt 0:03:49]} 19. Bxe7 {[%emt 0:01:18]} Rxe7 {[%emt 0:00:24]} 20. Bxe4 {[%emt 0:14:29]} dxe4 {[%emt 0:00:08]} 21. d5 {[%emt 0:00:25]} f5 {[%emt 0:02:08]} 22. Qd4 {[%emt 0:01:18]} Qd6 {[%emt 0:01:52]} 23. g3 {[%emt 0:04:29]} b5 {[%emt 0:03:54]} 24. Nd1 {[%emt 0:05:05]} Qxd5 {[%emt 0:02:45]} 25. Qxd5+ {[%emt 0:00:12]} Bxd5 {[%emt 0:00:05]} 26. Ne3 {[%emt 0:00:04]} Be6 {[%emt 0:04:59]} 27. Rc6 {[%emt 0:04:22]} Kf7 {[%emt 0:01:44]} 28. Rd1 {[%emt 0:01:05]} g6 {[%emt 0:00:46]} 29. Rdd6 {[%emt 0:01:25]} Bxa2 {[%emt 0:01:06]} 30. Rxa6 {[%emt 0:00:41]} Rxa6 {[%emt 0:00:07]} 31. Rxa6 {[%emt 0:00:02]} Bc4 {[%emt 0:06:05]} 32. Rc6 {[%emt 0:01:02]} Bd3 {[%emt 0:07:25]} 33. g4 {[%emt 0:02:11]} fxg4 {[%emt 0:01:30]} 34. Nxg4 {[%emt 0:00:03]} Ra7 {[%emt 0:00:21]} 35. Ne5+ {[%emt 0:02:47]} Kg7 {[%emt 0:00:06]} 36. Rc3 {[%emt 0:00:40]} Ra2 {[%emt 0:01:06]} 37. b3 {[%emt 0:00:13]} Rd2 {[%emt 0:04:21]} 38. Rc7+ {[%emt 0:00:22]} Kf6 {[%emt 0:00:12]} 39. Rd7 {[%emt 0:00:43]} g5 {[%emt 0:00:44]} 40. Nxd3 {[%emt 0:00:40]} exd3 {[%emt 0:02:05]} 41. fxg5+ {[%emt 0:00:07]} Kxg5 {[%emt 0:00:13]} 42. Kf1 {[%emt 0:00:22]} Kf4 {[%emt 0:00:44]} 43. Rxh7 {[%emt 0:00:53]} Ke3 {[%emt 0:00:25]} 44. Ke1 {[%emt 0:00:38]} Rb2 {[%emt 0:01:09]} 45. Re7+ {[%emt 0:00:19]} Kd4 {[%emt 0:00:10]} 46. h4 {[%emt 0:00:39]} Rh2 {[%emt 0:00:50]} 47. Rd7+ {[%emt 0:00:32]} Kc3 {[%emt 0:00:03]} 48. Rc7+ {[%emt 0:00:26]} Kxb3 {[%emt 0:00:24]} 49. Rd7 {[%emt 0:00:28]} Rxh4 {[%emt 0:03:37]} 50. Rxd3+ {[%emt 0:00:15]} Kc2 {[%emt 0:00:03]} 51. Rd2+ {[%emt 0:00:37]} Kc3 {[%emt 0:00:40]} 52. Rd8 {[%emt 0:00:35]} b4 {[%emt 0:00:51]} 53. Kd1 {[%emt 0:00:37]} Rh1+ {[%emt 0:00:44]} 54. Ke2 {[%emt 0:00:04]} b3 {[%emt 0:00:15]} 55. Rc8+ {[%emt 0:00:07]} Kd4 {[%emt 0:01:13]} 56. Rd8+ {[%emt 0:00:11]} Kc3 {[%emt 0:00:57]} 57. Rc8+ {[%emt 0:00:09]} Kb2 {[%emt 0:00:04]} 58. Kd2 {[%emt 0:01:00]} Kb1 {[%emt 0:01:00]} 59. Rb8 {[%emt 0:00:17]} b2 {[%emt 0:00:05]} 60. Rb7 {[%emt 0:01:16]} Rh2+ {[%emt 0:00:28]} 61. Kd1 {[%emt 0:00:42]} Rh3 {[%emt 0:00:12]} 62. Ra7 {[%emt 0:00:18]} Rd3+ {[%emt 0:00:10]} 63. Ke2 {[%emt 0:00:13]} Kc2 {[%emt 0:00:28]} 64. Rb7 {[%emt 0:01:17]} Rc3 {[%emt 0:00:10]} 0-1

[Event "2nd Namma Bengaluru Open-A 2025"]
[Site "Bengaluru"]
[Date "2025.04.11"]
[Round "2.15"]
[White "Kaustuv, Kundu"]
[Black "Majumder Shrayan"]
[Result "*"]
[Annotator "RC"]
[ECO "D02"]
[WhiteElo "2407"]
[BlackElo "2111"]
[PlyCount "43"]
[EventDate "2025.04.10"]
[EventType "swiss"]
[EventCountry "IND"]
[SourceTitle "playchess.com"]
[Source "ChessBase"]
[SourceQuality "1"]
[TimeControl "5400+30"]

1. Nf3 {[%emt 0:08:01]} d5 {[%emt 0:00:43]} 2. g3 {[%emt 0:00:06]} Nd7 {[%emt 0:00:24]} 3. d4 {[%emt 0:00:30]} Nb6 {[%emt 0:00:09]} 4. Nc3 {[%emt 0:01:18]} Bf5 {[%emt 0:02:08]} 5. Nh4 {[%emt 0:00:56]} Bg4 {[%emt 0:00:20]} 6. Qd3 {[%emt 0:04:48]} e6 {[%emt 0:02:20]} 7. f3 {[%emt 0:07:09]} Bh5 {[%emt 0:03:11]} 8. e4 {[%emt 1:11:42]} Be7 {[%emt 0:09:15]} 9. Ng2 {[%emt 0:01:07]} Nf6 {[%emt 0:03:13]} 10. Bg5 {[%emt 0:05:34]} O-O {[%emt 1:13:47]} 11. Nf4 {[%emt 0:01:47]} Bg6 {[%emt 0:01:34]} 12. h4 {[%emt 0:02:42]} h6 {[%emt 0:26:22]} 13. Bxf6 {[%emt 0:01:27]} Bxf6 {[%emt 0:00:22]} 14. Nxg6 {[%emt 0:00:06]} fxg6 {[%emt 0:00:07]} 15. e5 {[%emt 0:00:13]} Be7 {[%emt 0:00:10]} 16. Qxg6 {[%emt 0:00:37]} Rxf3 {[%emt 0:02:20]} 17. Bd3 {[%emt 0:02:39]} Rxd3 {[%emt 0:35:21]} 18. Qxe6+ {[%emt 0:00:34]} Kh8 {[%emt 0:00:06]} 19. cxd3 {[%emt 0:00:06]} c5 {[%emt 0:00:07]} 20. O-O {[%emt 0:00:43]} Rc8 {[%emt 0:24:20]} 21. Rf7 {[%emt 0:00:34]} cxd4 {[%emt 0:01:06]} 22. Ne2 {[%emt 0:00:30]} *

[Event "2nd Namma Bengaluru Open-A 2025"]
[Site "Bengaluru"]
[Date "2025.04.11"]
[Round "2.16"]
[White "Nguyen, Quoc Hy"]
[Black "Aakash G"]
[Result "1-0"]
[Annotator "RC"]
[ECO "D77"]
[WhiteElo "2404"]
[BlackElo "2100"]
[PlyCount "79"]
[EventDate "2025.04.10"]
[EventType "swiss"]
[EventCountry "IND"]
[SourceTitle "playchess.com"]
[Source "ChessBase"]
[SourceQuality "1"]
[TimeControl "5400+30"]

1. d4 {[%emt 0:00:06]} Nf6 {[%emt 0:00:07]} 2. c4 {[%emt 0:00:10]} c5 {[%emt 0:00:05]} 3. Nf3 {[%emt 0:00:42]} cxd4 {[%emt 0:01:23]} 4. Nxd4 {[%emt 0:00:07]} g6 {[%emt 0:01:16]} 5. g3 {[%emt 0:01:05]} d5 {[%emt 0:02:44]} 6. Bg2 {[%emt 0:03:18]} dxc4 {[%emt 0:06:08]} 7. O-O {[%emt 0:03:41]} Bg7 {[%emt 0:00:57]} 8. Na3 {[%emt 0:02:25]} O-O {[%emt 0:04:38]} 9. Nxc4 {[%emt 0:00:09]} Nd5 {[%emt 0:06:12]} 10. Nb5 {[%emt 0:20:48]} Be6 {[%emt 0:00:19]} 11. Bxd5 {[%emt 0:00:29]} Bxd5 {[%emt 0:01:20]} 12. Ne3 {[%emt 0:01:51]} e6 {[%emt 0:02:29]} 13. Nxd5 {[%emt 0:00:23]} exd5 {[%emt 0:00:02]} 14. Bf4 {[%emt 0:00:16]} Nc6 {[%emt 0:00:44]} 15. Qb3 {[%emt 0:05:16]} Na5 {[%emt 0:15:25]} 16. Qf3 {[%emt 0:08:47]} Qd7 {[%emt 0:01:38]} 17. Nc3 {[%emt 0:03:01]} d4 {[%emt 0:04:53]} 18. Ne4 {[%emt 0:00:07]} Nc4 {[%emt 0:03:58]} 19. Rac1 {[%emt 0:08:22]} Rac8 {[%emt 0:03:49]} 20. b3 {[%emt 0:02:45]} Ne5 {[%emt 0:00:53]} 21. Bxe5 {[%emt 0:00:06]} Bxe5 {[%emt 0:00:05]} 22. Nc5 {[%emt 0:00:04]} Qc6 {[%emt 0:06:00]} 23. Qxc6 {[%emt 0:00:46]} Rxc6 {[%emt 0:00:23]} 24. Nd7 {[%emt 0:00:21]} Re8 {[%emt 0:01:51]} 25. Rxc6 {[%emt 0:00:11]} bxc6 {[%emt 0:00:02]} 26. Rc1 {[%emt 0:00:11]} Re7 {[%emt 0:01:31]} 27. Nc5 {[%emt 0:01:08]} Bd6 {[%emt 0:03:31]} 28. Kf1 {[%emt 0:00:21]} Bxc5 {[%emt 0:09:22]} 29. Rxc5 {[%emt 0:00:06]} Re6 {[%emt 0:00:03]} 30. Ke1 {[%emt 0:00:08]} Kg7 {[%emt 0:07:25]} 31. Kd2 {[%emt 0:00:06]} Rf6 {[%emt 0:01:11]} 32. f3 {[%emt 0:01:27]} Rd6 {[%emt 0:01:07]} 33. Kd3 {[%emt 0:00:47]} Kf6 {[%emt 0:00:10]} 34. Rc4 {[%emt 0:00:14]} Ke5 {[%emt 0:00:06]} 35. f4+ {[%emt 0:02:09]} Kf5 {[%emt 0:00:05]} 36. h3 {[%emt 0:00:17]} h5 {[%emt 0:02:15]} 37. Rxd4 {[%emt 0:00:19]} Rxd4+ {[%emt 0:01:51]} 38. Kxd4 {[%emt 0:00:06]} g5 {[%emt 0:00:06]} 39. e4+ {[%emt 0:00:05]} Kg6 {[%emt 0:00:38]} 40. h4 {[%emt 0:00:31]} 1-0

[Event "2nd Namma Bengaluru Open-A 2025"]
[Site "Bengaluru"]
[Date "2025.04.11"]
[Round "2.17"]
[White "Gunawardhana, Devindya Oshini"]
[Black "Anuj Shrivatri"]
[Result "0-1"]
[Annotator "RC"]
[ECO "B51"]
[WhiteElo "2110"]
[BlackElo "2400"]
[PlyCount "162"]
[EventDate "2025.04.10"]
[EventType "swiss"]
[EventCountry "IND"]
[SourceTitle "playchess.com"]
[Source "ChessBase"]
[SourceQuality "1"]
[TimeControl "5400+30"]

1. e4 {[%emt 0:00:02]} c5 {[%emt 0:07:29]} 2. Nf3 {[%emt 0:00:06]} d6 {[%emt 0:00:22]} 3. d4 {[%emt 0:00:07]} cxd4 {[%emt 0:00:04]} 4. Qxd4 {[%emt 0:00:05]} Nc6 {[%emt 0:04:44]} 5. Bb5 {[%emt 0:00:07]} a6 {[%emt 0:00:36]} 6. Bxc6+ {[%emt 0:00:45]} bxc6 {[%emt 0:00:09]} 7. O-O {[%emt 0:00:55]} e5 {[%emt 0:00:59]} 8. Qd3 {[%emt 0:03:04]} Be7 {[%emt 0:02:40]} 9. Rd1 {[%emt 0:02:44]} Qc7 {[%emt 0:12:25]} 10. Bg5 {[%emt 0:11:56]} f6 {[%emt 0:07:23]} 11. Bd2 {[%emt 0:06:30]} f5 {[%emt 0:05:25]} 12. exf5 {[%emt 0:06:16]} Nf6 {[%emt 0:00:16]} 13. Nc3 {[%emt 0:05:06]} d5 {[%emt 0:02:35]} 14. Qe2 {[%emt 0:07:29]} e4 {[%emt 0:01:10]} 15. Nd4 {[%emt 0:03:16]} O-O {[%emt 0:01:31]} 16. f3 {[%emt 0:15:48]} c5 {[%emt 0:12:43]} 17. Ne6 {[%emt 0:04:06]} Bxe6 {[%emt 0:00:09]} 18. fxe6 {[%emt 0:00:08]} e3 {[%emt 0:01:32]} 19. Be1 {[%emt 0:08:41]} Qe5 {[%emt 0:12:35]} 20. Qd3 {[%emt 0:05:54]} Rfd8 {[%emt 0:03:23]} 21. Ne2 {[%emt 0:03:56]} Bd6 {[%emt 0:05:33]} 22. Bg3 {[%emt 0:02:46]} Qxe6 {[%emt 0:00:11]} 23. Bxd6 {[%emt 0:01:10]} Rxd6 {[%emt 0:00:05]} 24. b4 {[%emt 0:04:26]} cxb4 {[%emt 0:00:49]} 25. Nd4 {[%emt 0:00:47]} Qe5 {[%emt 0:01:18]} 26. Rab1 {[%emt 0:00:13]} Rb6 {[%emt 0:06:56]} 27. Re1 {[%emt 0:00:40]} Re8 {[%emt 0:00:08]} 28. Rb3 {[%emt 0:00:30]} a5 {[%emt 0:04:26]} 29. Rxe3 {[%emt 0:00:11]} Qxe3+ {[%emt 0:00:34]} 30. Qxe3 {[%emt 0:00:01]} Rxe3 {[%emt 0:00:06]} 31. Rxe3 {[%emt 0:00:02]} Kf7 {[%emt 0:00:48]} 32. Rb3 {[%emt 0:03:08]} Nd7 {[%emt 0:00:27]} 33. c3 {[%emt 0:01:13]} Nc5 {[%emt 0:01:48]} 34. Rb1 {[%emt 0:00:11]} Ne6 {[%emt 0:03:06]} 35. Nxe6 {[%emt 0:01:26]} Kxe6 {[%emt 0:00:02]} 36. cxb4 {[%emt 0:00:44]} axb4 {[%emt 0:00:05]} 37. Rb3 {[%emt 0:01:08]} Kd6 {[%emt 0:00:53]} 38. a3 {[%emt 0:01:06]} Kc5 {[%emt 0:00:04]} 39. axb4+ {[%emt 0:00:04]} Kc4 {[%emt 0:01:19]} 40. Rb1 {[%emt 0:00:29]} d4 {[%emt 0:00:36]} 41. Rc1+ {[%emt 0:01:09]} Kxb4 {[%emt 0:00:49]} 42. Rb1+ {[%emt 0:01:09]} Kc5 {[%emt 0:00:04]} 43. Rc1+ {[%emt 0:01:02]} Kd6 {[%emt 0:00:32]} 44. Rc4 {[%emt 0:00:24]} Ke5 {[%emt 0:00:23]} 45. Rc7 {[%emt 0:00:24]} d3 {[%emt 0:02:25]} 46. Kf2 {[%emt 0:00:45]} Rb2+ {[%emt 0:00:25]} 47. Ke3 {[%emt 0:00:14]} Rxg2 {[%emt 0:01:04]} 48. Kxd3 {[%emt 0:00:04]} h6 {[%emt 0:00:28]} 49. Ke3 {[%emt 0:00:13]} Kf6 {[%emt 0:00:09]} 50. Rc6+ {[%emt 0:01:11]} Kg5 {[%emt 0:00:26]} 51. f4+ {[%emt 0:00:27]} Kf5 {[%emt 0:01:08]} 52. Rc7 {[%emt 0:00:38]} Kg6 {[%emt 0:00:27]} 53. Rc6+ {[%emt 0:00:19]} Kh7 {[%emt 0:00:27]} 54. f5 {[%emt 0:00:22]} Rxh2 {[%emt 0:00:09]} 55. Kf4 {[%emt 0:00:02]} Rf2+ {[%emt 0:00:28]} 56. Kg4 {[%emt 0:00:25]} Rf1 {[%emt 0:00:15]} 57. Rc3 {[%emt 0:01:14]} Rg1+ {[%emt 0:00:08]} 58. Kf4 {[%emt 0:00:14]} Rf1+ {[%emt 0:00:08]} 59. Kg4 {[%emt 0:00:27]} Ra1 {[%emt 0:01:34]} 60. Rf3 {[%emt 0:00:48]} Ra4+ {[%emt 0:00:11]} 61. Kg3 {[%emt 0:00:33]} Ra6 {[%emt 0:00:04]} 62. Kg4 {[%emt 0:00:10]} Kg8 {[%emt 0:00:06]} 63. Rf4 {[%emt 0:00:53]} Kf7 {[%emt 0:01:01]} 64. Rb4 {[%emt 0:00:27]} Kf6 {[%emt 0:00:06]} 65. Kf4 {[%emt 0:00:31]} Rc6 {[%emt 0:00:05]} 66. Ra4 {[%emt 0:00:04]} Rb6 {[%emt 0:00:05]} 67. Rc4 {[%emt 0:00:03]} Rb1 {[%emt 0:01:30]} 68. Rc6+ {[%emt 0:00:03]} Kf7 {[%emt 0:00:05]} 69. Rc7+ {[%emt 0:00:01]} Kg8 {[%emt 0:00:06]} 70. Rc8+ {[%emt 0:00:03]} Kh7 {[%emt 0:00:04]} 71. Rc6 {[%emt 0:00:17]} Rf1+ {[%emt 0:00:17]} 72. Kg4 {[%emt 0:00:15]} Rg1+ {[%emt 0:00:34]} 73. Kf4 {[%emt 0:00:12]} h5 {[%emt 0:01:27]} 74. Ra6 {[%emt 0:00:12]} Rg4+ {[%emt 0:00:18]} 75. Ke5 {[%emt 0:00:43]} h4 {[%emt 0:01:36]} 76. f6 {[%emt 0:01:42]} gxf6+ {[%emt 0:00:08]} 77. Kf5 {[%emt 0:00:40]} Rg5+ {[%emt 0:00:07]} 78. Kf4 {[%emt 0:00:38]} h3 {[%emt 0:01:06]} 79. Ra7+ {[%emt 0:00:10]} Kg6 {[%emt 0:00:06]} 80. Ra3 {[%emt 0:00:33]} h2 {[%emt 0:00:11]} 81. Rh3 {[%emt 0:00:02]} Rh5 {[%emt 0:00:06]} 0-1

[Event "2nd Namma Bengaluru Open-A 2025"]
[Site "Bengaluru"]
[Date "2025.04.11"]
[Round "2.18"]
[White "Fedorov, Alexei"]
[Black "Vivaan Vijay Saraogi"]
[Result "1-0"]
[Annotator "RC"]
[ECO "B21"]
[WhiteElo "2396"]
[BlackElo "2098"]
[PlyCount "129"]
[EventDate "2025.04.10"]
[EventType "swiss"]
[EventCountry "IND"]
[SourceTitle "playchess.com"]
[Source "ChessBase"]
[SourceQuality "1"]
[TimeControl "5400+30"]

1. e4 {[%emt 0:00:04]} c5 {[%emt 0:00:16]} 2. d3 {[%emt 0:00:10]} Nc6 {[%emt 0:00:18]} 3. f4 {[%emt 0:00:10]} g6 {[%emt 0:01:52]} 4. Nf3 {[%emt 0:00:35]} Bg7 {[%emt 0:00:48]} 5. Be2 {[%emt 0:00:11]} d6 {[%emt 0:01:20]} 6. O-O {[%emt 0:00:21]} Nf6 {[%emt 0:01:42]} 7. h3 {[%emt 0:01:11]} O-O {[%emt 0:06:22]} 8. Qe1 {[%emt 0:00:04]} b5 {[%emt 0:10:20]} 9. a3 {[%emt 0:00:13]} a5 {[%emt 0:01:08]} 10. Be3 {[%emt 0:00:17]} Ba6 {[%emt 0:04:13]} 11. Nbd2 {[%emt 0:00:28]} b4 {[%emt 0:16:34]} 12. c3 {[%emt 0:05:30]} bxc3 {[%emt 0:23:52]} 13. bxc3 {[%emt 0:00:04]} Rb8 {[%emt 0:00:34]} 14. f5 {[%emt 0:05:44]} Rb2 {[%emt 0:09:45]} 15. Qh4 {[%emt 0:09:05]} Ne5 {[%emt 0:03:19]} 16. Nxe5 {[%emt 0:07:28]} dxe5 {[%emt 0:00:05]} 17. fxg6 {[%emt 0:01:52]} hxg6 {[%emt 0:02:36]} 18. c4 {[%emt 0:00:15]} Bxc4 {[%emt 0:01:19]} 19. dxc4 {[%emt 0:02:46]} Rxd2 {[%emt 0:00:09]} 20. Bxd2 {[%emt 0:00:05]} Qxd2 {[%emt 0:00:05]} 21. Bf3 {[%emt 0:00:10]} Bh6 {[%emt 0:03:59]} 22. Kh1 {[%emt 0:01:14]} Kg7 {[%emt 0:08:13]} 23. Qf2 {[%emt 0:02:25]} Qd6 {[%emt 0:00:28]} 24. Rab1 {[%emt 0:01:13]} Rh8 {[%emt 0:02:26]} 25. Rfd1 {[%emt 0:02:14]} Qc6 {[%emt 0:00:45]} 26. Rb5 {[%emt 0:00:50]} Bf4 {[%emt 0:00:29]} 27. Qxc5 {[%emt 0:02:22]} Qe6 {[%emt 0:00:29]} 28. Rb6 {[%emt 0:04:16]} Rxh3+ {[%emt 0:00:02]} 29. Kg1 {[%emt 0:00:55]} Bh2+ {[%emt 0:00:02]} 30. Kf2 {[%emt 0:06:40]} Rxf3+ {[%emt 0:00:03]} 31. gxf3 {[%emt 0:00:07]} Qh3 {[%emt 0:00:04]} 32. Rxf6 {[%emt 0:02:19]} Bg3+ {[%emt 0:00:53]} 33. Ke3 {[%emt 0:01:19]} Kxf6 {[%emt 0:01:56]} 34. Kd3 {[%emt 0:03:52]} Qg2 {[%emt 0:00:25]} 35. Rg1 {[%emt 0:04:26]} Qh2 {[%emt 0:00:37]} 36. Rb1 {[%emt 0:02:25]} Bf4 {[%emt 0:00:30]} 37. Qxa5 {[%emt 0:02:17]} Qg2 {[%emt 0:00:06]} 38. Rb6+ {[%emt 0:03:41]} Kg7 {[%emt 0:00:02]} 39. c5 {[%emt 0:00:27]} Qxf3+ {[%emt 0:00:13]} 40. Kc4 {[%emt 0:00:11]} Qxe4+ {[%emt 0:01:11]} 41. Kb5 {[%emt 0:00:11]} Qd3+ {[%emt 0:00:44]} 42. Kc6 {[%emt 0:03:21]} Qf3+ {[%emt 0:00:07]} 43. Kd7 {[%emt 0:01:48]} Qd5+ {[%emt 0:01:07]} 44. Ke8 {[%emt 0:02:33]} Be3 {[%emt 0:00:30]} 45. a4 {[%emt 0:05:36]} Bxc5 {[%emt 0:00:30]} 46. Qb5 {[%emt 0:00:20]} Qd4 {[%emt 0:00:30]} 47. a5 {[%emt 0:02:32]} e4 {[%emt 0:00:29]} 48. Rc6 {[%emt 0:01:52]} Bd6 {[%emt 0:00:16]} 49. a6 {[%emt 0:01:27]} e3 {[%emt 0:00:25]} 50. Qb3 {[%emt 0:01:54]} e2 {[%emt 0:00:49]} 51. Rc1 {[%emt 0:03:15]} e6 {[%emt 0:00:30]} 52. Qb7 {[%emt 0:11:45]} Qa4+ {[%emt 0:00:29]} 53. Qd7 {[%emt 0:00:00]} Qf4 {[%emt 0:00:27]} 54. Rh1 {[%emt 0:00:00]} Qf3 {[%emt 0:00:35]} 55. Qb7 {[%emt 0:00:00]} Qf4 {[%emt 0:00:31]} 56. a7 {[%emt 0:00:00]} Qa4+ {[%emt 0:00:29]} 57. Qd7 {[%emt 0:00:00]} e1=Q {[%emt 0:00:27]} 58. Rxe1 {[%emt 0:00:00]} Qh4 {[%emt 0:00:33]} 59. Qxf7+ {[%emt 0:00:00]} Kh6 {[%emt 0:00:08]} 60. Rxe6 {[%emt 0:00:00]} Qa4+ {[%emt 0:00:34]} 61. Qd7 {[%emt 0:00:00]} Qa1 {[%emt 0:00:48]} 62. Qxd6 {[%emt 0:00:00]} Qxa7 {[%emt 0:00:26]} 63. Rxg6+ {[%emt 0:00:00]} Kh5 {[%emt 0:00:03]} 64. Rh6+ {[%emt 0:00:00]} Kg4 {[%emt 0:00:06]} 65. Qd7+ {[%emt 0:06:30]} 1-0